fUSD/lending_fUSD_20240513
["ID","MTS","AMOUNT","RATE_DAILY","PERIOD"]
[326914736,1715571039318,-500.0,0.00012504,2]
[326914737,1715571039328,-500.0,0.00012513,2]
[326914738,1715571039338,-500.0,0.00012522,2]
[326914739,1715571039350,-500.0,0.0001253,2]
[326914740,1715571039360,-500.0,0.00012539,2]
[326914741,1715571039370,-500.0,0.00012548,2]
[326914742,1715571039380,-500.0,0.00012557,2]
[326914743,1715571039390,-500.0,0.00012566,2]
[326914744,1715571039400,-500.0,0.00012574,2]
[326914745,1715571039410,-500.0,0.00012583,2]
[326914746,1715571039422,-500.0,0.00012592,2]
[326914747,1715571039438,-300.0,0.000126,4]
[326914748,1715571039448,-500.0,0.00012601,2]
[326914749,1715571039459,-3503.7619161,0.00012607,2]
[326914750,1715571039468,-500.0,0.0001261,2]
[326914751,1715571039479,-500.0,0.00012618,2]
[326914752,1715571039490,-500.0,0.00012627,2]
[326914753,1715571039500,-500.0,0.00012636,2]
[326914754,1715571039513,-500.0,0.00012645,2]
[326914755,1715571039524,-500.0,0.00012654,2]
[326914756,1715571039534,-500.0,0.00012662,2]
[326914757,1715571039545,-300.0,0.000127,4]
[326914758,1715571039555,-150.0,0.00012707,2]
[326914759,1715571039566,-150.0,0.00012708,2]
[326914760,1715571039576,-150.0,0.00012716,2]
[326914761,1715571039586,-150.0,0.00012719,2]
[326914762,1715571039597,-1218.68187071,0.00012719,2]
[326914763,1715571039609,-150.0,0.00012722,2]
[326914764,1715571039620,-150.0,0.00012729,2]
[326914765,1715571039630,-150.0,0.0001273,2]
[326914766,1715571039640,-150.0,0.0001273,2]
[326914767,1715571039651,-150.0,0.00012735,2]
[326914768,1715571039662,-150.0,0.00012735,2]
[326914769,1715571039672,-150.0,0.00012736,2]
[326914770,1715571039682,-150.0,0.00012739,2]
[326914771,1715571039693,-150.0,0.00012739,2]
[326914772,1715571039703,-150.0,0.00012739,2]
[326914773,1715571039715,-150.0,0.0001274,2]
[326914774,1715571039726,-150.0,0.00012741,2]
[326914775,1715571039738,-150.0,0.00012741,2]
[326914776,1715571039748,-4390.496,0.00012745,2]
[326914777,1715571039759,-1463.0,0.00012745,2]
[326914778,1715571039770,-150.0,0.00012746,2]
[326914779,1715571039781,-150.0,0.00012747,2]
[326914780,1715571039792,-150.0,0.0001275,2]
[326914781,1715571039803,-150.0,0.00012751,2]
[326914782,1715571039814,-150.0,0.00012751,2]
[326914783,1715571039825,-150.0,0.00012759,2]
[326914784,1715571039836,-256.7028,0.00012768,2]
[326914785,1715571039848,-150.0,0.00012768,2]
[326914786,1715571039859,-300.0,0.00012769,2]
[326914787,1715571039869,-150.0,0.00012774,2]
[326914788,1715571039880,-1575.37618794,0.00012777,2]
[326914789,1715571039891,-150.0,0.00012785,2]
[326914790,1715571039902,-150.0,0.00012787,2]
[326914791,1715571039912,-150.0,0.00012789,2]
[326914792,1715571039923,-1000.0,0.00012793,2]
[326914793,1715571039934,-150.0,0.00012794,2]
[326914794,1715571039944,-150.0,0.00012794,2]
[326914795,1715571039955,-150.0,0.00012796,2]
[326914796,1715571039965,-150.0,0.00012799,2]
[326914797,1715571039976,-400.0,0.000128,4]
[326914798,1715571039987,-150.0,0.00012803,2]
[326914799,1715571039998,-150.0,0.00012806,2]
[326914800,1715571040008,-150.0,0.00012806,2]
[326914801,1715571040019,-150.0,0.0001281,2]
[326914802,1715571040031,-150.0,0.00012812,2]
[326914803,1715571040041,-150.0,0.00012812,2]
[326914804,1715571040051,-150.0,0.00012814,2]
[326914805,1715571040061,-150.0,0.00012825,2]
[326914806,1715571040072,-150.0,0.00012826,2]
[326914807,1715571040082,-150.0,0.00012832,2]
[326914808,1715571040092,-150.0,0.00012834,2]
[326914809,1715571040102,-150.0,0.00012834,2]
[326914810,1715571040112,-150.0,0.00012835,2]
[326914811,1715571040122,-150.0,0.00012836,2]
[326914812,1715571040132,-150.0,0.00012836,2]
[326914813,1715571040142,-150.0,0.00012836,2]
[326914814,1715571040152,-150.0,0.00012839,2]
[326914815,1715571040163,-150.0,0.0001284,2]
[326914816,1715571040172,-150.0,0.00012842,2]
[326914817,1715571040182,-150.0,0.00012845,2]
[326914818,1715571040193,-370.77248099,0.0001285,2]
[326914819,1715571040203,-3000.0,0.0001285,2]
[326914820,1715571040214,-12646.59177514,0.0001285,2]
[326914821,1715571040224,-150.0,0.00012852,2]
[326914822,1715571040245,-150.0,0.00012853,2]
[326914823,1715571040257,-150.0,0.00012856,2]
[326914824,1715571040269,-150.0,0.00012858,2]
[326914825,1715571040279,-150.0,0.00012859,2]
[326914826,1715571040289,-29047.265,0.00012868,2]
[326914827,1715571040300,-150.0,0.00012868,2]
[326914828,1715571040310,-150.0,0.00012869,2]
[326914829,1715571040320,-1211.7634,0.00012869,2]
[326914830,1715571040331,-314.7751,0.00012869,2]
[326914831,1715571040342,-3700.823,0.00012871,2]
[326914832,1715571040353,-305.19375696,0.00012871,2]
[326914833,1715571040363,-150.0,0.00012875,2]
[326914834,1715571040373,-150.0,0.00012876,2]
[326914835,1715571040384,-150.0,0.00012876,2]
[326914836,1715571040394,-1000.0,0.00012876,2]
[326914837,1715571040404,-500.0,0.00012876,2]
[326914838,1715571040414,-6166.3922,0.00012877,2]
[326914839,1715571040430,-150.0,0.00012877,2]
[326914840,1715571040440,-150.0,0.00012878,2]
[326914841,1715571040450,-326.16560858,0.00012878,2]
[326914842,1715571040755,-1011.3205,0.00012879,2]
[326914843,1715571040765,-150.0,0.00012879,2]
[326914844,1715571040775,-150.0,0.00012879,2]
[326914845,1715571040784,-10000.0,0.0001288,2]
[326914846,1715571040794,-202.98768086,0.0001288,2]
[326914847,1715571040804,-991.43,0.0001288,2]
[326914848,1715571040814,-1441.17181716,0.0001288,2]
[326914849,1715571040823,-198.94117052,0.0001288,2]
[326914850,1715571040833,-3804.16738629,0.0001288,2]
[326914851,1715571040843,-1441.17181713,0.00012882,2]
[326914852,1715571040852,-1441.17181713,0.00012884,2]
[326914853,1715571040862,-1441.17181713,0.00012885,2]
[326914854,1715571040872,-150.0,0.00012886,2]
[326914855,1715571040882,-150.0,0.00012886,2]
[326914856,1715571040892,-1441.17181713,0.00012887,2]
[326914857,1715571040902,-1441.17181713,0.00012889,2]
[326914858,1715571040912,-150.0,0.0001289,2]
[326914859,1715571040922,-3804.16738628,0.0001289,2]
[326914860,1715571040932,-1441.17181713,0.00012891,2]
[326914861,1715571040941,-1441.17181713,0.00012893,2]
[326914862,1715571040951,-1441.17181713,0.00012895,2]
[326914863,1715571040960,-1441.17181713,0.00012896,2]
[326914864,1715571040970,-150.0,0.00012897,2]
[326914865,1715571040979,-1441.17181713,0.00012898,2]
[326914866,1715571040990,-500.0,0.00012899,2]
[326914867,1715571041000,-707.17711402,0.000129,2]
[326914868,1715571041009,-707.17711401,0.000129,2]
[326914869,1715571041019,-707.17711401,0.000129,2]
[326914870,1715571041028,-707.17711401,0.000129,2]
[326914871,1715571041037,-707.17711401,0.000129,2]
[326914872,1715571041047,-707.17711401,0.000129,2]
[326914873,1715571041057,-707.17711401,0.000129,2]
[326914874,1715571041067,-707.17711401,0.000129,2]
[326914875,1715571041076,-1441.17181713,0.000129,2]
[326914876,1715571041086,-3804.16738628,0.000129,2]
[326914877,1715571041096,-150.0,0.00012901,2]
[326914878,1715571041106,-300.0,0.00012905,2]
[326914879,1715571041115,-150.0,0.00012905,2]
[326914880,1715571041125,-150.0,0.00012907,2]
[326914881,1715571041135,-150.0,0.00012907,2]
[326914882,1715571041144,-150.0,0.00012912,2]
[326914883,1715571041154,-150.0,0.00012912,2]
[326914884,1715571041163,-150.0,0.00012913,2]
[326914885,1715571041173,-150.0,0.00012913,2]
[326914886,1715571041182,-150.0,0.00012913,2]
[326914887,1715571041192,-150.0,0.00012916,2]
[326914888,1715571041205,-150.0,0.00012916,2]
[326914889,1715571041216,-150.0,0.00012916,2]
[326914890,1715571041226,-150.0,0.00012924,2]
[326914891,1715571041237,-150.0,0.00012924,2]
[326914892,1715571041248,-150.0,0.0001293,2]
[326914893,1715571041258,-150.0,0.00012933,2]
[326914894,1715571041268,-150.0,0.00012936,2]
[326914896,1715571041278,-150.0,0.00012938,2]
[326914898,1715571041287,-150.0,0.00012939,2]
[326914899,1715571041297,-150.0,0.00012944,2]
[326914900,1715571041307,-150.0,0.00012946,2]
[326914901,1715571041317,-150.0,0.00012946,2]
[326914902,1715571041327,-150.0,0.00012951,2]
[326914903,1715571041337,-300.0,0.00012954,2]
[326914904,1715571041346,-205.95,0.00012956,2]
[326914905,1715571041356,-150.0,0.00012959,2]
[326914906,1715571041366,-150.0,0.0001296,2]
[326914907,1715571041376,-150.0,0.00012963,2]
[326914908,1715571041386,-150.0,0.00012965,2]
[326914909,1715571041395,-4103.73818373,0.00012966,2]
[326914910,1715571041405,-300.0,0.00012967,2]
[326914911,1715571041416,-665.99242083,0.00012968,2]
[326914912,1715571041427,-637.21,0.00012968,2]
[326914913,1715571041439,-377.10700815,0.00012968,2]
[326914914,1715571041449,-609.58663333,0.00012968,2]
[326914915,1715571041459,-500.0,0.00012968,2]
[326914916,1715571041469,-608.90102038,0.00012968,2]
[326914917,1715571041479,-541.11153259,0.00012968,2]
[326914918,1715571041491,-547.6360117,0.00012968,2]
[326914919,1715571041501,-500.0,0.00012968,2]
[326914920,1715571041514,-582.22242166,0.00012968,2]
[326914921,1715571041525,-500.0,0.00012968,2]
[326914922,1715571041535,-648.45437769,0.00012968,2]
[326914923,1715571041545,-568.44962421,0.00012968,2]
[326914924,1715571041555,-500.0,0.00012968,2]
[326914925,1715571041565,-500.0,0.00012968,2]
[326914926,1715571041574,-500.0,0.00012968,2]
[326914927,1715571041584,-391.68516296,0.00012968,2]
[326914928,1715571041595,-512.4860833,0.00012968,2]
[326914929,1715571041606,-500.0,0.00012968,2]
[326914930,1715571041616,-528.72872021,0.00012968,2]
[326914931,1715571041625,-502.57,0.00012968,2]
[326914932,1715571041636,-500.0,0.00012968,2]
[326914933,1715571041646,-500.0,0.00012968,2]
[326914934,1715571041656,-500.0,0.00012968,2]
[326914935,1715571041666,-563.32671923,0.00012968,2]
[326914936,1715571041676,-505.35866043,0.00012968,2]
[326914937,1715571041686,-500.0,0.00012968,2]
[326914938,1715571041696,-500.0,0.00012968,2]
[326914939,1715571041706,-500.0,0.00012968,2]
[326914940,1715571041715,-500.0,0.00012968,2]
[326914941,1715571041725,-491.19096303,0.00012968,2]
[326914942,1715571041735,-500.0,0.00012968,2]
[326914943,1715571041747,-500.0,0.00012968,2]
[326914944,1715571041757,-500.0,0.00012968,2]
[326914945,1715571041766,-500.0,0.00012968,2]
[326914946,1715571041776,-500.0,0.00012968,2]
[326914947,1715571041786,-302.28231372,0.00012968,2]
[326914948,1715571041796,-451.14543325,0.00012969,2]
[326914949,1715571041806,-500.0,0.00012969,2]
[326914950,1715571041815,-362.37366486,0.00012969,2]
[326914951,1715571041825,-500.0,0.00012969,2]
[326914952,1715571041835,-185.79233731,0.00012969,2]
[326914953,1715571041844,-369.43719201,0.00012969,2]
[326914954,1715571041854,-164.49141189,0.00012969,2]
[326914955,1715571041866,-500.0,0.00012969,2]
[326914956,1715571041875,-511.69179861,0.00012969,2]
[326914957,1715571041885,-500.0,0.00012969,2]
[326914958,1715571041894,-500.0,0.00012969,2]
[326914959,1715571041905,-500.0,0.00012969,2]
[326914960,1715571041915,-505.63223534,0.00012969,2]
[326914961,1715571041924,-505.0791956,0.00012969,2]
[326914962,1715571041934,-505.26467188,0.00012969,2]
[326914963,1715571041945,-506.51157626,0.00012969,2]
[326914964,1715571041955,-500.0,0.00012969,2]
[326914965,1715571041966,-510.21691748,0.00012969,2]
[326914966,1715571041975,-505.85686496,0.00012969,2]
[326914967,1715571041985,-504.52645041,0.00012969,2]
[326914968,1715571041998,-500.0,0.00012969,2]
[326914969,1715571042008,-500.0,0.00012969,2]
[326914970,1715571042017,-502.79088941,0.00012969,2]
[326914971,1715571042026,-500.0,0.00012969,2]
[326914972,1715571042036,-643.6728249,0.00012969,2]
[326914973,1715571042045,-500.0,0.00012969,2]
[326914974,1715571042055,-507.54311934,0.00012969,2]
[326914975,1715571042065,-175.81702007,0.00012969,2]
[326914976,1715571042074,-160.09977072,0.00012969,2]
[326914977,1715571042084,-507.15251722,0.00012969,2]
[326914978,1715571042094,-504.79067742,0.00012969,2]
[326914979,1715571042105,-556.48763741,0.00012969,2]
[326914980,1715571042114,-561.26010839,0.00012969,2]
[326914981,1715571042125,-500.0,0.00012969,2]
[326914982,1715571042134,-500.0,0.00012969,2]
[326914983,1715571042145,-505.71773915,0.00012969,2]
[326914984,1715571042155,-507.31440678,0.00012969,2]
[326914985,1715571042165,-500.0,0.00012969,2]
[326914986,1715571042175,-500.0,0.00012969,2]
[326914987,1715571042185,-500.0,0.00012969,2]
[326914988,1715571042194,-506.77440819,0.00012969,2]
[326914989,1715571042204,-501.7453549,0.00012969,2]
[326914990,1715571042213,-506.57232438,0.00012969,2]
[326914991,1715571042223,-508.20346532,0.00012969,2]
[326914992,1715571042233,-505.96202707,0.00012969,2]
[326914993,1715571042246,-500.0,0.00012969,2]
[326914994,1715571042256,-500.0,0.00012969,2]
[326914995,1715571042266,-517.61297804,0.00012969,2]
[326914996,1715571042276,-507.88371086,0.00012969,2]
[326914997,1715571042286,-506.88047454,0.00012969,2]
[326914998,1715571042301,-507.06187528,0.00012969,2]
[326914999,1715571042311,-500.0,0.00012969,2]
[326915000,1715571042321,-500.0,0.00012969,2]
[326915001,1715571042331,-500.0,0.00012969,2]
[326915002,1715571042341,-505.9848888,0.00012969,2]
[326915003,1715571042350,-507.06224978,0.00012969,2]
[326915004,1715571042360,-500.0,0.00012969,2]
[326915005,1715571042369,-500.0,0.00012969,2]
[326915006,1715571042379,-256.45407131,0.00012969,2]
[326915007,1715571042390,-511.5523058,0.00012969,2]
[326915008,1715571042399,-209.30427793,0.00012969,2]
[326915009,1715571042409,-154.93810175,0.00012969,2]
[326915010,1715571042421,-481.29257614,0.00012969,2]
[326915011,1715571042433,-546.59080508,0.00012969,2]
[326915012,1715571042444,-500.0,0.00012969,2]
[326915013,1715571042454,-504.75873296,0.00012969,2]
[326915014,1715571042463,-500.0,0.00012969,2]
[326915015,1715571042472,-500.0,0.00012969,2]
[326915016,1715571042482,-500.0,0.00012969,2]
[326915017,1715571042494,-503.52540395,0.00012969,2]
[326915018,1715571042505,-500.0,0.00012969,2]
[326915019,1715571042515,-519.8080359,0.00012969,2]
[326915020,1715571042524,-500.0,0.00012969,2]
[326915021,1715571042534,-500.0,0.00012969,2]
[326915022,1715571042544,-302.28231372,0.0001297,2]
[326915023,1715571042554,-302.28231372,0.0001297,2]
[326915024,1715571042564,-528.90484918,0.00012974,2]
[326915025,1715571042573,-500.0,0.00012974,2]
[326915026,1715571042583,-515.53020653,0.00012974,2]
[326915027,1715571042592,-500.0,0.00012974,2]
[326915028,1715571042602,-555.41878559,0.00012974,2]
[326915029,1715571042612,-500.0,0.00012974,2]
[326915030,1715571042623,-500.0,0.00012974,2]
[326915031,1715571042633,-500.0,0.00012974,2]
[326915032,1715571042642,-500.0,0.00012974,2]
[326915033,1715571042652,-500.0,0.00012974,2]
[326915034,1715571042661,-544.9091646,0.00012974,2]
[326915035,1715571042670,-616.77511927,0.00012974,2]
[326915036,1715571042680,-550.82434726,0.00012974,2]
[326915037,1715571042689,-500.0,0.00012974,2]
[326915038,1715571042698,-500.0,0.00012974,2]
[326915039,1715571042708,-500.0,0.00012974,2]
[326915040,1715571042717,-500.0,0.00012974,2]
[326915041,1715571042726,-500.0,0.00012974,2]
[326915042,1715571042736,-536.86931895,0.00012974,2]
[326915043,1715571042746,-500.0,0.00012974,2]
[326915044,1715571042756,-500.0,0.00012974,2]
[326915045,1715571042765,-500.0,0.00012974,2]
[326915046,1715571042775,-500.0,0.00012974,2]
[326915047,1715571042784,-500.0,0.00012974,2]
[326915048,1715571042793,-500.0,0.00012975,2]
[326915049,1715571042803,-500.0,0.00012975,2]
[326915050,1715571042813,-551.2863775,0.00012975,2]
[326915051,1715571042824,-521.06685985,0.00012975,2]
[326915052,1715571042834,-500.0,0.00012975,2]
[326915053,1715571042844,-551.01522656,0.00012975,2]
[326915054,1715571042855,-500.0,0.00012975,2]
[326915055,1715571042867,-500.0,0.00012975,2]
[326915056,1715571042878,-500.0,0.00012975,2]
[326915057,1715571042888,-500.0,0.00012975,2]
[326915058,1715571042898,-500.0,0.00012975,2]
[326915059,1715571042908,-540.67792107,0.00012975,2]
[326915060,1715571042918,-500.0,0.00012975,2]
[326915061,1715571042928,-500.0,0.00012975,2]
[326915062,1715571042938,-500.0,0.00012975,2]
[326915063,1715571042948,-500.0,0.00012975,2]
[326915064,1715571042958,-500.0,0.00012975,2]
[326915065,1715571042968,-660.51,0.00012975,2]
[326915066,1715571042977,-500.0,0.00012975,2]
[326915067,1715571042987,-500.0,0.00012975,2]
[326915068,1715571042997,-524.73542639,0.00012975,2]
[326915069,1715571043007,-613.76276953,0.00012975,2]
[326915070,1715571043017,-500.0,0.00012975,2]
[326915071,1715571043026,-500.0,0.00012975,2]
[326915072,1715571043036,-527.042947,0.00012975,2]
[326915073,1715571043045,-1950.24,0.00012975,2]
[326915074,1715571043055,-609.02401708,0.00012975,2]
[326915075,1715571043064,-632.41396852,0.00012975,2]
[326915076,1715571043074,-500.0,0.00012975,2]
[326915077,1715571043083,-556.3674303,0.00012975,2]
[326915078,1715571043092,-500.0,0.00012975,2]
[326915079,1715571043101,-500.0,0.00012975,2]
[326915080,1715571043111,-500.0,0.00012975,2]
[326915081,1715571043120,-500.0,0.00012975,2]
[326915082,1715571043130,-500.0,0.00012975,2]
[326915083,1715571043139,-500.0,0.00012975,2]
[326915084,1715571043148,-500.0,0.00012975,2]
[326915085,1715571043157,-500.0,0.00012975,2]
[326915086,1715571043167,-500.0,0.00012975,2]
[326915087,1715571043176,-500.0,0.00012975,2]
[326915088,1715571043186,-548.43230553,0.00012975,2]
[326915089,1715571043196,-589.37848624,0.00012975,2]
[326915090,1715571043206,-500.0,0.00012975,2]
[326915091,1715571043216,-500.0,0.00012975,2]
[326915092,1715571043226,-500.0,0.00012975,2]
[326915093,1715571043235,-500.0,0.00012975,2]
[326915094,1715571043248,-513.76530466,0.00012975,2]
[326915095,1715571043258,-500.0,0.00012975,2]
[326915096,1715571043268,-500.0,0.00012975,2]
[326915097,1715571043278,-500.0,0.00012975,2]
[326915098,1715571043288,-500.0,0.00012975,2]
[326915099,1715571043297,-620.94421606,0.00012975,2]
[326915100,1715571043307,-500.0,0.00012976,2]
[326915101,1715571043317,-500.0,0.00012976,2]
[326915102,1715571043326,-503.2961166,0.00012976,2]
[326915103,1715571043335,-500.0,0.00012976,2]
[326915104,1715571043345,-500.0,0.00012976,2]
[326915105,1715571043354,-500.0,0.00012976,2]
[326915106,1715571043364,-500.0,0.00012976,2]
[326915107,1715571043374,-500.0,0.00012976,2]
[326915108,1715571043383,-504.04604098,0.00012976,2]
[326915109,1715571043392,-500.0,0.00012976,2]
[326915110,1715571043402,-500.0,0.00012976,2]
[326915111,1715571043412,-500.0,0.00012976,2]
[326915112,1715571043425,-500.0,0.00012976,2]
[326915113,1715571043435,-515.04642198,0.00012976,2]
[326915114,1715571043444,-500.0,0.00012976,2]
[326915115,1715571043455,-571.59754999,0.00012976,2]
[326915116,1715571043465,-500.0,0.00012976,2]
[326915117,1715571043474,-500.0,0.00012976,2]
[326915118,1715571043486,-537.72004559,0.00012976,2]
[326915120,1715571043497,-500.0,0.00012976,2]
[326915123,1715571043508,-500.0,0.00012976,2]
[326915125,1715571043517,-500.0,0.00012976,2]
[326915127,1715571043527,-500.0,0.00012976,2]
[326915129,1715571043537,-507.55667803,0.00012976,2]
[326915131,1715571043547,-500.0,0.00012976,2]
[326915133,1715571043557,-500.0,0.00012976,2]
[326915134,1715571043567,-500.0,0.00012976,2]
[326915136,1715571043578,-500.0,0.00012976,2]
[326915138,1715571043588,-508.40347461,0.00012976,2]
[326915140,1715571043599,-500.0,0.00012976,2]
[326915141,1715571043609,-505.6720478,0.00012976,2]
[326915143,1715571043619,-500.0,0.00012976,2]
[326915144,1715571043629,-514.11886006,0.00012976,2]
[326915145,1715571043639,-500.0,0.00012976,2]
[326915146,1715571043649,-500.0,0.00012976,2]
[326915147,1715571043659,-500.0,0.00012976,2]
[326915148,1715571043669,-500.0,0.00012976,2]
[326915149,1715571043680,-512.46773711,0.00012976,2]
[326915150,1715571043690,-500.0,0.00012976,2]
[326915152,1715571043700,-500.0,0.00012976,2]
[326915154,1715571043709,-500.0,0.00012976,2]
[326915156,1715571043719,-500.0,0.00012976,2]
[326915159,1715571043730,-150.0,0.00012976,2]
[326915161,1715571043740,-500.0,0.00012976,2]
[326915163,1715571043752,-503.21044041,0.00012976,2]
[326915165,1715571043763,-500.0,0.00012976,2]
[326915167,1715571043773,-155.23344087,0.00012976,2]
[326915168,1715571043783,-500.0,0.00012976,2]
[326915169,1715571043793,-500.0,0.00012976,2]
[326915170,1715571043803,-500.0,0.00012976,2]
[326915171,1715571043812,-500.0,0.00012976,2]
[326915172,1715571043822,-500.0,0.00012976,2]
[326915173,1715571043832,-500.0,0.00012976,2]
[326915174,1715571043841,-500.0,0.00012976,2]
[326915175,1715571043851,-544.47024523,0.00012976,2]
[326915176,1715571043861,-522.20565991,0.00012976,2]
[326915177,1715571043870,-496.86469368,0.00012976,2]
[326915178,1715571043880,-555.03606253,0.00012976,2]
[326915179,1715571043889,-500.0,0.00012976,2]
[326915180,1715571043899,-500.0,0.00012976,2]
[326915181,1715571043908,-500.0,0.00012976,2]
[326915182,1715571043918,-500.0,0.00012976,2]
[326915183,1715571043927,-500.0,0.00012976,2]
[326915184,1715571043937,-500.0,0.00012976,2]
[326915185,1715571043946,-500.0,0.00012976,2]
[326915186,1715571043957,-522.71482565,0.00012976,2]
[326915187,1715571043967,-500.0,0.00012976,2]
[326915188,1715571043976,-529.84153622,0.00012976,2]
[326915189,1715571043986,-527.56065048,0.00012976,2]
[326915190,1715571043997,-523.58519278,0.00012976,2]
[326915191,1715571044006,-544.0359485,0.00012976,2]
[326915192,1715571044016,-522.62025086,0.00012976,2]
[326915193,1715571044025,-366.0112896,0.00012976,2]
[326915194,1715571044090,-384.85160257,0.00012899,2]
[326915195,1715571044176,-115.14839743,0.00012899,2]
[326915196,1715571044187,-133.9887104,0.00012976,2]
[326915197,1715571044196,-500.0,0.00012976,2]
[326915198,1715571044206,-500.0,0.00012976,2]
[326915199,1715571044216,-513.03059619,0.00012976,2]
[326915200,1715571044226,-500.0,0.00012976,2]
[326915201,1715571044235,-500.0,0.00012976,2]
[326915202,1715571044246,-412.74234078,0.00012976,2]
[326915203,1715571044258,-93.73360969,0.00012976,2]
[326915204,1715571044268,-237.37804278,0.00012976,2]
[326915205,1715571044383,-262.62195722,0.00012976,2]
[326915206,1715571044393,-347.46325846,0.00012976,2]
[326915207,1715571044407,-162.72043466,0.00012976,2]
[326915208,1715571044417,-500.0,0.00012976,2]
[326915209,1715571044427,-509.62767042,0.00012976,2]
[326915210,1715571044438,-500.0,0.00012976,2]
[326915211,1715571044448,-500.0,0.00012976,2]
[326915212,1715571044458,-367.53019854,0.00012976,2]
[326915213,1715571044507,-132.46980146,0.00012976,2]
[326915214,1715571044517,-590.63440662,0.00012976,2]
[326915215,1715571044527,-117.43512182,0.00012976,2]
[326915218,1715571044538,-382.56487818,0.00012976,2]
[326915222,1715571044548,-500.0,0.00012976,2]
[326915225,1715571044558,-500.0,0.00012976,2]
[326915228,1715571044568,-500.0,0.00012976,2]
[326915231,1715571044577,-506.88385699,0.00012976,2]
[326915234,1715571044587,-500.0,0.00012976,2]
[326915237,1715571044597,-500.0,0.00012976,2]
[326915240,1715571044606,-500.0,0.00012976,2]
[326915243,1715571044616,-500.0,0.00012976,2]
[326915246,1715571044626,-500.0,0.00012976,2]
[326915249,1715571044636,-500.0,0.00012976,2]
[326915251,1715571044646,-500.0,0.00012976,2]
[326915252,1715571044655,-500.0,0.00012976,2]
[326915253,1715571044664,-500.0,0.00012976,2]
[326915254,1715571044674,-500.0,0.00012976,2]
[326915255,1715571044683,-521.21380432,0.00012976,2]
[326915256,1715571044692,-500.0,0.00012976,2]
[326915257,1715571044701,-531.12159571,0.00012976,2]
[326915258,1715571044710,-514.744167,0.00012976,2]
[326915259,1715571044719,-500.0,0.00012977,2]
[326915260,1715571044728,-500.0,0.00012977,2]
[326915261,1715571044737,-500.0,0.00012977,2]
[326915262,1715571044748,-500.0,0.00012977,2]
[326915264,1715571044757,-500.0,0.00012977,2]
[326915266,1715571044767,-500.0,0.00012977,2]
[326915268,1715571044776,-500.0,0.00012977,2]
[326915270,1715571044785,-216.36520892,0.00012977,2]
[326915272,1715571044794,-635.78021177,0.00012977,2]
[326915274,1715571044803,-500.0,0.00012977,2]
[326915276,1715571044812,-53.11026496,0.00012977,2]
[326915279,1715571044824,-314.81582132,0.00012977,2]
[326915281,1715571044834,-216.04953373,0.00012977,2]
[326915317,1715571045162,-221.83,0.00012147,2]
[326915318,1715571045172,-545.0,0.00012745,2]
[326915319,1715571045181,-69.77016149,0.00012977,2]
[326915320,1715571045193,-214.18030478,0.00012977,2]
[326915321,1715571045203,-500.0,0.00012977,2]
[326915322,1715571045212,-247.28235748,0.00012977,2]
[326915323,1715571045222,-500.0,0.00012977,2]
[326915324,1715571045232,-500.0,0.00012977,2]
[326915325,1715571045243,-425.72950009,0.00012977,2]
[326915326,1715571045252,-500.0,0.00012977,2]
[326915327,1715571045263,-605.1465732,0.00012977,2]